fUSD/lending_fUSD_20240203
["ID","MTS","AMOUNT","RATE_DAILY","PERIOD"]
[313218259,1706967041807,-500.0,0.00022795,2]
[313218260,1706967041816,-500.0,0.00022795,2]
[313218261,1706967041825,-520.88,0.00022795,2]
[313218262,1706967041834,-500.0,0.00022795,2]
[313218263,1706967041843,-500.0,0.00022795,2]
[313218264,1706967041852,-500.0,0.00022795,2]
[313218265,1706967041860,-541.55,0.00022795,2]
[313218266,1706967041869,-500.0,0.00022795,2]
[313218267,1706967041878,-607.69,0.00022795,2]
[313218268,1706967041887,-1233.62,0.00022795,2]
[313218269,1706967041896,-500.0,0.00022795,2]
[313218270,1706967041907,-500.0,0.00022795,2]
[313218271,1706967042016,-500.0,0.00022795,2]
[313218272,1706967042026,-574.6523154,0.00022795,2]
[313218273,1706967042035,-689.93,0.00022795,2]
[313218274,1706967042044,-500.0,0.00022795,2]
[313218275,1706967042053,-500.0,0.00022795,2]
[313218276,1706967042062,-1066.18,0.00022795,2]
[313218277,1706967042071,-500.0,0.00022795,2]
[313218278,1706967042080,-500.0,0.00022795,2]
[313218279,1706967042089,-500.0,0.00022795,2]
[313218280,1706967042097,-500.0,0.00022795,2]
[313218281,1706967042106,-500.0,0.00022795,2]
[313218282,1706967042115,-500.0,0.00022795,2]
[313218283,1706967042124,-500.0,0.00022795,2]
[313218284,1706967042133,-500.0,0.00022795,2]
[313218285,1706967042142,-500.0,0.00022795,2]
[313218286,1706967042151,-1533.71,0.00022795,2]
[313218287,1706967042160,-500.0,0.00022795,2]
[313218288,1706967042169,-1939.99,0.00022795,2]
[313218289,1706967042178,-500.0,0.00022795,2]
[313218290,1706967042188,-500.0,0.00022795,2]
[313218291,1706967042196,-704.24,0.00022795,2]
[313218292,1706967042205,-500.0,0.00022795,2]
[313218293,1706967042214,-500.0,0.00022795,2]
[313218294,1706967042223,-500.0,0.00022795,2]
[313218295,1706967042232,-500.0,0.00022795,2]
[313218296,1706967042241,-500.0,0.00022795,2]
[313218297,1706967042250,-500.0,0.00022795,2]
[313218298,1706967042259,-804.23,0.00022795,2]
[313218299,1706967042268,-500.0,0.00022795,2]
[313218300,1706967042277,-1502.46,0.00022795,2]
[313218301,1706967042286,-1755.72,0.00022795,2]
[313218302,1706967042295,-500.0,0.00022795,2]
[313218303,1706967042304,-647.45,0.00022795,2]
[313218304,1706967042312,-500.0,0.00022795,2]
[313218305,1706967042323,-500.0,0.00022795,2]
[313218306,1706967042332,-500.0,0.00022795,2]
[313218307,1706967042341,-500.0,0.00022795,2]
[313218308,1706967042350,-1885.06,0.00022795,2]
[313218309,1706967042359,-324.42112287,0.00022795,2]
[313218310,1706967042367,-500.0,0.00022795,2]
[313218311,1706967042377,-500.0,0.00022795,2]
[313218312,1706967042385,-722.12,0.00022795,2]
[313218313,1706967042394,-500.0,0.00022795,2]
[313218314,1706967042404,-500.0,0.00022795,2]
[313218315,1706967042413,-500.0,0.00022795,2]
[313218316,1706967042423,-500.0,0.00022795,2]
[313218317,1706967042432,-500.0,0.00022795,2]
[313218318,1706967042441,-500.0,0.00022795,2]
[313218319,1706967042450,-437.55150777,0.00022795,2]
[313218320,1706967042460,-500.0,0.00022795,2]
[313218321,1706967042472,-500.0,0.00022795,2]
[313218322,1706967042481,-245000.0,0.00022796,2]
[313218323,1706967042490,-3691.0,0.000228,2]
[313218324,1706967042500,-17773.0,0.000228,2]
[313218325,1706967042511,-499.99,0.000228,2]
[313218326,1706967042520,-1000.0,0.000228,2]
[313218327,1706967042530,-1000.0,0.000228,3]
[313218328,1706967042540,-641.0,0.000228,2]
[313218329,1706967042550,-258.40017569,0.00022814,2]
[313218330,1706967042559,-514.7730575,0.00022842,2]
[313218332,1706967042568,-258.40017569,0.00022843,2]
[313218334,1706967042577,-179.52421724,0.00022857,2]
[313218336,1706967042586,-161.57006629,0.00022869,2]
[313218338,1706967042595,-258.40017569,0.00022871,2]
[313218339,1706967042604,-34181.9846666,0.00022879,2]
[313218340,1706967042613,-59595.1199999,0.00022879,2]
[313218341,1706967042622,-80727.6143333,0.00022879,2]
[313218342,1706967042632,-70170.6557144,0.00022879,2]
[313218343,1706967042641,-36834.8071519,0.00022879,2]
[313218344,1706967042650,-2567.7374212,0.00022881,2]
[313218345,1706967042659,-7140.0625189,0.00022881,2]
[313218346,1706967042668,-500.0,0.00022882,2]
[313218347,1706967042678,-500.0,0.00022882,2]
[313218348,1706967042687,-487.58446446,0.00022882,2]
[313218349,1706967042696,-500.0,0.00022882,2]
[313218351,1706967042705,-500.0,0.00022882,2]
[313218353,1706967042715,-500.0,0.00022882,2]
[313218355,1706967042724,-500.0,0.00022882,2]
[313218357,1706967042732,-500.0,0.00022882,2]
[313218359,1706967042741,-500.0,0.00022882,2]
[313218360,1706967042750,-500.0,0.00022882,2]
[313218361,1706967042759,-500.0,0.00022882,2]
[313218362,1706967042768,-500.0,0.00022882,2]
[313218363,1706967042776,-1044.36318803,0.00022883,2]
[313218364,1706967042785,-1156.97541312,0.00022884,2]
[313218365,1706967042795,-35078.41971886,0.00022884,2]
[313218366,1706967042804,-5167.02555807,0.00022884,2]
[313218367,1706967042812,-441.1192305,0.00022884,2]
[313218368,1706967042821,-339.25590422,0.00022884,2]
[313218369,1706967042830,-1650.94324634,0.00022884,2]
[313218370,1706967042839,-198.93083368,0.00022884,2]
[313218371,1706967042848,-210.0,0.00022884,2]
[313218372,1706967042857,-5000.0,0.00022884,2]
[313218373,1706967042866,-114437.3410869,0.00022885,2]
[313218374,1706967042875,-5167.02555806,0.00022885,2]
[313218375,1706967042884,-1264.08452391,0.00022886,2]
[313218376,1706967042893,-284.59286079,0.00022886,2]
[313218377,1706967042903,-3307.99676522,0.00022886,2]
[313218378,1706967042911,-5167.02555806,0.00022887,2]
[313218379,1706967042921,-5167.02555806,0.00022888,2]
[313218380,1706967042930,-157.18657054,0.00022889,2]
[313218381,1706967042938,-5167.02555806,0.0002289,2]
[313218382,1706967042947,-5167.02555806,0.00022891,2]
[313218383,1706967042956,-441.1192305,0.00022892,2]
[313218384,1706967042966,-339.25590421,0.00022892,2]
[313218385,1706967042975,-1650.94324633,0.00022892,2]
[313218386,1706967042983,-5167.02555806,0.00022893,2]
[313218387,1706967042993,-5167.02555806,0.00022894,2]
[313218388,1706967043002,-5167.02555806,0.00022896,2]
[313218389,1706967043011,-17163.84464851,0.00022896,2]
[313218390,1706967043020,-2145.46767011,0.00022896,2]
[313218391,1706967043029,-5167.02555806,0.00022897,2]
[313218392,1706967043038,-5167.02555806,0.00022899,2]
[313218393,1706967043047,-1500.0,0.000229,2]
[313218394,1706967043056,-5167.02555806,0.000229,2]
[313218395,1706967043065,-152.57148179,0.000229,2]
[313218396,1706967043074,-5078.8690107,0.000229,2]
[313218397,1706967043083,-258.40017569,0.000229,2]
[313218398,1706967043091,-155.78896589,0.000229,2]
[313218399,1706967043100,-155.78896585,0.000229,2]
[313218400,1706967043109,-155.78896585,0.000229,2]
[313218401,1706967043118,-441.1192305,0.000229,2]
[313218402,1706967043127,-155.78896585,0.000229,2]
[313218403,1706967043136,-155.78896585,0.000229,2]
[313218404,1706967043145,-339.25590421,0.000229,2]
[313218405,1706967043155,-155.78896585,0.000229,2]
[313218406,1706967043164,-514.7730575,0.000229,2]
[313218407,1706967043173,-155.78896585,0.000229,2]
[313218408,1706967043181,-155.78896585,0.000229,2]
[313218409,1706967043190,-155.78896585,0.000229,2]
[313218410,1706967043199,-391.464,0.00022942,2]
[313218411,1706967043208,-1363.543,0.00022942,2]
[313218412,1706967043217,-2464.847,0.00022942,2]
[313218413,1706967043226,-274.939,0.00022942,2]
[313218414,1706967043234,-839.0,0.00022942,2]
[313218415,1706967043243,-1034.0,0.00022942,2]
[313218416,1706967043251,-859.0,0.00022942,2]
[313218417,1706967043261,-285.833,0.00022954,2]
[313218418,1706967043270,-150.0,0.00022954,2]
[313218419,1706967043278,-150.0,0.00022954,2]
[313218420,1706967043288,-151.008,0.00022954,2]
[313218421,1706967043297,-150.0,0.00022954,2]
[313218422,1706967043306,-150.0,0.00022954,2]
[313218423,1706967043315,-150.258,0.00022954,2]
[313218424,1706967043324,-208.591,0.00022954,2]
[313218425,1706967043333,-150.0,0.00022954,2]
[313218426,1706967043342,-150.26,0.00022954,2]
[313218427,1706967043351,-200.0,0.00022954,2]
[313218428,1706967043359,-878.06,0.00022956,2]
[313218429,1706967043368,-500.0,0.00022956,2]
[313218430,1706967043377,-697.41,0.00022956,2]
[313218431,1706967043386,-559.91857214,0.00022957,2]
[313218432,1706967043394,-485.84175044,0.00022957,2]
[313218433,1706967043404,-500.0,0.00022957,2]
[313218434,1706967043413,-844.92,0.00022957,2]
[313218435,1706967043422,-905.64,0.00022957,2]
[313218436,1706967043431,-500.0,0.00022957,2]
[313218437,1706967043441,-400.0,0.0002297,2]
[313218438,1706967043450,-161.57006629,0.00022974,2]
[313218439,1706967043461,-213.07699592,0.0002298,2]
[313218440,1706967043471,-161.57006629,0.0002298,2]
[313218441,1706967043480,-531.0,0.00022984,2]
[313218442,1706967043489,-2864.9010506,0.00022984,2]
[313218443,1706967043498,-3162.0646799,0.00022984,2]
[313218444,1706967043507,-3459.2283093,0.00022984,2]
[313218445,1706967043516,-3756.3919386,0.00022984,2]
[313218446,1706967043525,-4053.555568,0.00022984,2]
[313218447,1706967043534,-38137.8574666,0.00022984,2]
[313218448,1706967043546,-42093.7302666,0.00022984,2]
[313218449,1706967043556,-46049.6030666,0.00022984,2]
[313218450,1706967043565,-50005.4758666,0.00022984,2]
[313218451,1706967043574,-53961.3486666,0.00022984,2]
[313218452,1706967043583,-7966.3802235,0.00022984,2]
[313218453,1706967043592,-8792.6979281,0.00022984,2]
[313218454,1706967043603,-9619.0156327,0.00022984,2]
[313218455,1706967043612,-10445.3333373,0.00022984,2]
[313218456,1706967043622,-11271.6510419,0.00022984,2]
[313218457,1706967043631,-48491.0719999,0.00022984,2]
[313218458,1706967043642,-37387.0239999,0.00022984,2]
[313218459,1706967043652,-26282.9759999,0.00022984,2]
[313218460,1706967043662,-15178.9279999,0.00022984,2]
[313218461,1706967043671,-4074.8799999,0.00022984,2]
[313218462,1706967043680,-65687.9019333,0.00022984,2]
[313218463,1706967043690,-50648.1895333,0.00022984,2]
[313218464,1706967043699,-35608.4771333,0.00022984,2]
[313218465,1706967043709,-20568.7647333,0.00022984,2]
[313218466,1706967043718,-5529.0523333,0.00022984,2]
[313218467,1706967043728,-57097.7253475,0.00022984,2]
[313218468,1706967043737,-44024.7949806,0.00022984,2]
[313218469,1706967043746,-30951.8646137,0.00022984,2]
[313218470,1706967043756,-17878.9342468,0.00022984,2]
[313218471,1706967043766,-4806.00388,0.00022984,2]
[313218472,1706967043864,-29971.56958,0.00022984,2]
[313218473,1706967043874,-23108.3320081,0.00022984,2]
[313218474,1706967043884,-16245.0944362,0.00022984,2]
[313218475,1706967043894,-9381.8568643,0.00022984,2]
[313218476,1706967043904,-2518.6192924,0.00022984,2]
[313218477,1706967043914,-63846.0,0.00022986,2]
[313218478,1706967043925,-30032.52811015,0.00022989,2]
[313218479,1706967043934,-236.75454593,0.00022989,2]
[313218480,1706967043943,-183.09987742,0.00022989,2]
[313218481,1706967043952,-927024.25439808,0.0002299,3]
[313218482,1706967043961,-163812.96887261,0.0002299,7]
[313218483,1706967043970,-231.04821633,0.00022997,2]
[313218484,1706967043979,-236.75454593,0.00022997,2]
[313218485,1706967043988,-183.09987742,0.00022997,2]
[313218486,1706967043997,-12349.13693768,0.00022998,2]
[313218487,1706967044005,-297.23685579,0.00022998,2]
[313218488,1706967044014,-164.45030469,0.00022998,2]
[313218489,1706967044023,-537.2160475,0.00022998,2]
[313218490,1706967044032,-322.48406852,0.00022999,2]
[313218491,1706967044042,-619.50095017,0.00022999,2]
[313218492,1706967044051,-982.3737,0.00022999,2]
[313218493,1706967044060,-198.6780891,0.00022999,2]
[313218494,1706967044069,-596.32239484,0.00022999,2]
[313218495,1706967044078,-500.0,0.00022999,2]
[313218496,1706967044088,-485.19974814,0.00022999,2]
[313218497,1706967044096,-367.62965478,0.00022999,2]
[313218498,1706967044106,-619.26517556,0.00022999,2]
[313218499,1706967044115,-183.09987742,0.00022999,2]
[313218500,1706967044124,-236.75454593,0.00022999,2]
[313218501,1706967044133,-183.09987742,0.00022999,2]
[313218502,1706967044142,-236.75454593,0.00022999,2]
[313218503,1706967044150,-183.09987742,0.00022999,2]
[313218504,1706967044160,-236.75454593,0.00022999,2]
[313218505,1706967044168,-183.09987742,0.00022999,2]
[313218506,1706967044177,-236.75454593,0.00022999,2]
[313218507,1706967044187,-183.09987742,0.00022999,2]
[313218508,1706967044196,-236.75454593,0.00022999,2]
[313218509,1706967044205,-183.09987742,0.00022999,2]
[313218510,1706967044214,-236.75454593,0.00022999,2]
[313218511,1706967044223,-183.09987742,0.00022999,2]
[313218512,1706967044232,-236.75454593,0.00022999,2]
[313218513,1706967044241,-183.09987742,0.00022999,2]
[313218514,1706967044250,-236.75454593,0.00022999,2]
[313218515,1706967044259,-155.85687054,0.00023,3]
[313218516,1706967044268,-912.05777919,0.00023,3]
[313218517,1706967044278,-3003748.27784631,0.00023,2]
[313218518,1706967044287,-142203.74150907,0.00023,2]
[313218519,1706967044296,-152669.38773148,0.00023,2]
[313218520,1706967044305,-134547.01365868,0.00023,2]
[313218521,1706967044314,-1267500.55014456,0.00023,2]
[313218523,1706967044323,-729526.9297321,0.00023,2]
[313218525,1706967044332,-152486.76825006,0.00023,2]
[313218527,1706967044341,-2000.0,0.00023,2]
[313218529,1706967044350,-424366.60373661,0.00023,2]
[313218531,1706967044359,-407641.48370669,0.00023,2]
[313218533,1706967044368,-10155.27764565,0.00023,2]
[313218535,1706967044377,-1324720.37328959,0.00023,2]
[313218536,1706967044387,-232382.85557289,0.00023,2]
[313218538,1706967044396,-226431.60339161,0.00023,2]
[313218540,1706967044405,-157325.6860351,0.00023,2]
[313218541,1706967044414,-195.9845292,0.00023,2]
[313218542,1706967044423,-20000.0,0.00023,2]
[313218543,1706967044432,-425.29,0.00023,2]
[313218544,1706967044441,-304.803929,0.00023,2]
[313218545,1706967044450,-1614.785869,0.00023,2]
[313218546,1706967044460,-276.40869,0.00023,2]
[313218547,1706967044472,-155.55,0.00023003,2]
[313218548,1706967044482,-51013.89548924,0.0002305,2]
[313218549,1706967044492,-500.0,0.00023069,2]
[313218550,1706967044502,-500.0,0.00023069,2]
[313218551,1706967044512,-500.0,0.00023069,2]
[313218552,1706967044522,-500.0,0.00023069,2]
[313218553,1706967044532,-500.0,0.00023069,2]
[313218554,1706967044542,-500.0,0.00023069,2]
[313218555,1706967044552,-500.0,0.00023069,2]
[313218556,1706967044561,-718.23,0.00023069,2]
[313218557,1706967044570,-500.0,0.00023069,2]
[313218558,1706967044580,-500.0,0.00023069,2]
[313218559,1706967044589,-583.57,0.00023069,2]
[313218560,1706967044599,-500.0,0.00023069,2]
[313218561,1706967044608,-600.25,0.00023069,2]
[313218562,1706967044618,-500.0,0.00023069,2]
[313218563,1706967044627,-500.0,0.00023069,2]
[313218564,1706967044636,-500.0,0.00023069,2]
[313218565,1706967044646,-500.0,0.00023069,2]
[313218566,1706967044655,-1094.28,0.00023069,2]
[313218567,1706967044665,-500.0,0.00023069,2]
[313218568,1706967044675,-500.0,0.00023069,2]
[313218569,1706967044685,-500.0,0.00023069,2]
[313218570,1706967044694,-1455.45,0.00023069,2]
[313218571,1706967044703,-500.0,0.00023069,2]
[313218572,1706967044712,-500.0,0.00023069,2]
[313218573,1706967044722,-597.23,0.00023069,2]
[313218574,1706967044731,-500.0,0.00023069,2]
[313218575,1706967044740,-236.02061299,0.00023069,2]
[313218576,1706967044750,-500.0,0.00023069,2]
[313218577,1706967044759,-500.0,0.00023069,2]
[313218578,1706967044768,-500.0,0.00023069,2]
[313218579,1706967044778,-8496.32,0.00023069,2]
[313218580,1706967044787,-500.0,0.00023069,2]
[313218581,1706967044796,-500.0,0.00023069,2]
[313218582,1706967044805,-500.0,0.00023069,2]
[313218583,1706967044815,-500.0,0.00023069,2]
[313218584,1706967044825,-500.0,0.00023069,2]
[313218585,1706967044836,-500.0,0.00023069,2]
[313218586,1706967044845,-500.0,0.00023069,2]
[313218587,1706967044855,-500.0,0.00023069,2]
[313218588,1706967044864,-1626.48,0.00023069,2]
[313218589,1706967044873,-500.0,0.00023069,2]
[313218590,1706967044883,-500.0,0.00023069,2]
[313218591,1706967044892,-500.0,0.00023069,2]
[313218592,1706967044901,-500.0,0.00023069,2]
[313218593,1706967044910,-784.58,0.00023069,2]
[313218594,1706967044919,-500.0,0.00023069,2]
[313218595,1706967044928,-564.24,0.00023069,2]
[313218596,1706967044937,-500.0,0.00023069,2]
[313218597,1706967044947,-500.0,0.00023069,2]
[313218598,1706967044956,-500.0,0.00023069,2]
[313218599,1706967044965,-500.0,0.00023069,2]
[313218600,1706967044974,-764.69,0.00023069,2]
[313218601,1706967044983,-500.0,0.00023069,2]
[313218602,1706967044992,-1009.0,0.00023069,2]
[313218603,1706967045001,-500.0,0.00023069,2]
[313218604,1706967045011,-699.25,0.00023069,2]
[313218605,1706967045019,-500.0,0.00023069,2]
[313218606,1706967045028,-500.0,0.00023069,2]
[313218607,1706967045038,-500.0,0.00023069,2]
[313218608,1706967045047,-500.0,0.00023069,2]
[313218609,1706967045055,-500.0,0.00023069,2]
[313218610,1706967045064,-562.87,0.00023069,2]
[313218611,1706967045074,-500.0,0.00023069,2]
[313218612,1706967045083,-8524.74,0.00023069,2]
[313218613,1706967045091,-154.65548,0.00023069,2]
[313218614,1706967045100,-500.0,0.00023069,2]
[313218615,1706967045109,-500.0,0.00023069,2]
[313218616,1706967045118,-520.88,0.00023069,2]
[313218617,1706967045127,-500.0,0.00023069,2]
[313218618,1706967045137,-500.0,0.00023069,2]
[313218619,1706967045147,-500.0,0.00023069,2]
[313218620,1706967045160,-541.55,0.00023069,2]
[313218621,1706967045169,-500.0,0.00023069,2]
[313218622,1706967045179,-607.69,0.00023069,2]
[313218623,1706967045188,-1233.62,0.00023069,2]
[313218624,1706967045197,-500.0,0.00023069,2]
[313218625,1706967045207,-499.94915395,0.00023069,2]
[313218626,1706967045216,-500.0,0.00023069,2]
[313218627,1706967045226,-689.93,0.00023069,2]
[313218628,1706967045235,-500.0,0.00023069,2]
[313218629,1706967045244,-500.0,0.00023069,2]
[313218630,1706967045253,-1066.18,0.00023069,2]
[313218631,1706967045262,-500.0,0.00023069,2]
[313218632,1706967045271,-550.75090784,0.00023069,2]
[313218633,1706967045280,-500.0,0.00023069,2]
[313218634,1706967045289,-500.0,0.00023069,2]
[313218635,1706967045298,-500.0,0.00023069,2]
[313218636,1706967045307,-500.0,0.00023069,2]
[313218637,1706967045316,-500.0,0.00023069,2]
[313218638,1706967045325,-500.0,0.00023069,2]
[313218639,1706967045333,-500.0,0.00023069,2]
[313218640,1706967045343,-1533.71,0.00023069,2]
[313218641,1706967045354,-500.0,0.00023069,2]
[313218642,1706967045363,-1939.99,0.00023069,2]
[313218643,1706967045373,-500.0,0.00023069,2]
[313218644,1706967045383,-500.0,0.00023069,2]
[313218645,1706967045393,-704.24,0.00023069,2]
[313218646,1706967045401,-500.0,0.00023069,2]
[313218647,1706967045411,-500.0,0.00023069,2]
[313218648,1706967045420,-500.0,0.00023069,2]
[313218649,1706967045429,-500.0,0.00023069,2]
[313218650,1706967045438,-500.0,0.00023069,2]
[313218651,1706967045447,-500.0,0.00023069,2]
[313218652,1706967045458,-804.23,0.00023069,2]
[313218653,1706967045469,-500.0,0.00023069,2]
[313218654,1706967045478,-1502.46,0.00023069,2]
[313218655,1706967045488,-1755.72,0.00023069,2]
[313218656,1706967045497,-500.0,0.00023069,2]
[313218660,1706967045594,-647.45,0.00023069,2]
[313218661,1706967045604,-500.0,0.00023069,2]
[313218662,1706967045612,-500.0,0.00023069,2]
[313218663,1706967045622,-500.0,0.00023069,2]
[313218664,1706967045631,-500.0,0.00023069,2]
[313218665,1706967045640,-1885.06,0.00023069,2]
[313218666,1706967045649,-500.0,0.00023069,2]
[313218667,1706967045659,-500.0,0.00023069,2]
[313218668,1706967045667,-722.12,0.00023069,2]
[313218669,1706967045677,-500.0,0.00023069,2]
[313218670,1706967045686,-500.0,0.00023069,2]
[313218671,1706967045695,-500.0,0.00023069,2]
[313218672,1706967045704,-500.0,0.00023069,2]
[313218673,1706967045713,-167.95868796,0.00023069,2]
[313218674,1706967045721,-500.0,0.00023069,2]
[313218675,1706967045730,-500.0,0.00023069,2]
[313218676,1706967045739,-500.0,0.00023069,2]
[313218677,1706967045748,-1000.0,0.00023075,3]
[313218678,1706967045757,-1000.0,0.00023086,3]
[313218679,1706967045766,-1000.0,0.00023086,3]
[313218680,1706967045775,-1000.0,0.00023086,3]
[313218681,1706967045785,-1000.0,0.00023096,3]
[313218682,1706967045794,-1000.0,0.00023096,3]
[313218683,1706967045803,-1000.0,0.00023096,3]
[313218684,1706967045812,-1000.0,0.00023096,3]
[313218685,1706967045821,-1000.0,0.00023096,3]
[313218686,1706967045829,-1000.0,0.00023096,3]
[313218687,1706967045838,-1000.0,0.00023096,3]
[313218688,1706967045847,-1000.0,0.00023096,3]
[313218689,1706967045856,-1000.0,0.00023096,3]
[313218690,1706967045865,-1000.0,0.00023096,3]
[313218691,1706967045874,-1000.0,0.00023096,3]
[313218692,1706967045882,-1000.0,0.00023096,3]
[313218693,1706967045892,-1000.0,0.000231,2]
[313218694,1706967045900,-1798.24710672,0.0002311,2]
[313218695,1706967045910,-1000.0,0.00023116,3]
[313218696,1706967045919,-1000.0,0.00023118,3]
[313218697,1706967045929,-1000.0,0.00023118,3]
[313218698,1706967045938,-1000.0,0.00023118,3]
[313218699,1706967045947,-1000.0,0.00023118,3]
[313218700,1706967045956,-1000.0,0.00023118,3]
[313218701,1706967045965,-1000.0,0.00023118,3]
[313218702,1706967045974,-1000.0,0.00023118,3]
[313218703,1706967045983,-1000.0,0.00023118,3]
[313218704,1706967045992,-1000.0,0.00023118,3]
[313218705,1706967046001,-1000.0,0.00023118,3]
[313218706,1706967046010,-1000.0,0.00023118,3]
[313218707,1706967046018,-1000.0,0.00023118,3]
[313218708,1706967046027,-1000.0,0.00023118,3]
[313218709,1706967046036,-1000.0,0.00023118,3]
[313218710,1706967046045,-1000.0,0.00023118,3]
[313218711,1706967046054,-1000.0,0.00023118,3]
[313218712,1706967046063,-1000.0,0.00023118,3]
[313218713,1706967046072,-1000.0,0.00023118,3]
[313218714,1706967046082,-1000.0,0.00023118,3]
[313218715,1706967046091,-1000.0,0.00023118,3]
[313218716,1706967046099,-7902.48600275,0.0002313,2]
[313218717,1706967046108,-207.0,0.00023133,2]
[313218718,1706967046117,-205.0,0.00023133,2]
[313218719,1706967046127,-1473.7426942,0.00023134,2]
[313218720,1706967046135,-300.0,0.00023227,2]
[313218721,1706967046144,-878.06,0.0002323,2]
[313218722,1706967046153,-500.0,0.0002323,2]
[313218723,1706967046162,-697.41,0.0002323,2]
[313218724,1706967046171,-500.0,0.00023231,2]
[313218725,1706967046180,-844.92,0.00023231,2]
[313218726,1706967046189,-905.64,0.00023231,2]
[313218727,1706967046198,-500.0,0.00023231,2]
[313218728,1706967046206,-1226.84025505,0.00023267,2]
[313218729,1706967046215,-1226.84025506,0.00023322,2]
[313218730,1706967046224,-500.0,0.00023343,2]
[313218731,1706967046233,-500.0,0.00023343,2]
[313218732,1706967046242,-500.0,0.00023343,2]
[313218733,1706967046252,-500.0,0.00023343,2]
[313218734,1706967046261,-500.0,0.00023343,2]
[313218735,1706967046270,-500.0,0.00023343,2]
[313218736,1706967046279,-500.0,0.00023343,2]
[313218737,1706967046289,-718.23,0.00023343,2]
[313218738,1706967046298,-500.0,0.00023343,2]
[313218739,1706967046307,-500.0,0.00023343,2]
[313218740,1706967046316,-583.57,0.00023343,2]
[313218741,1706967046325,-500.0,0.00023343,2]
[313218742,1706967046334,-600.25,0.00023343,2]
[313218743,1706967046344,-500.0,0.00023343,2]
[313218744,1706967046354,-500.0,0.00023343,2]
[313218745,1706967046364,-500.0,0.00023343,2]
[313218746,1706967046374,-500.0,0.00023343,2]
[313218747,1706967046383,-1094.28,0.00023343,2]
[313218748,1706967046392,-500.0,0.00023343,2]
[313218749,1706967046403,-500.0,0.00023343,2]
[313218750,1706967046412,-500.0,0.00023343,2]
[313218751,1706967046425,-1455.45,0.00023343,2]
[313218752,1706967046435,-500.0,0.00023343,2]
[313218753,1706967046446,-597.23,0.00023343,2]
[313218754,1706967046457,-500.0,0.00023343,2]
[313218755,1706967046469,-500.0,0.00023343,2]
[313218756,1706967046478,-500.0,0.00023343,2]
[313218757,1706967046488,-282.15915254,0.00023343,2]
[313218758,1706967046498,-8496.32,0.00023343,2]
[313218759,1706967046508,-295.16,0.00023343,2]
[313218760,1706967046518,-500.0,0.00023343,2]
[313218761,1706967046527,-500.0,0.00023343,2]
[313218762,1706967046537,-500.0,0.00023343,2]
[313218763,1706967046546,-500.0,0.00023343,2]
[313218764,1706967046557,-500.0,0.00023343,2]
[313218765,1706967046566,-500.0,0.00023343,2]
[313218766,1706967046576,-500.0,0.00023343,2]
[313218767,1706967046586,-1626.48,0.00023343,2]
[313218768,1706967046596,-500.0,0.00023343,2]
[313218769,1706967046606,-500.0,0.00023343,2]
[313218770,1706967046616,-500.0,0.00023343,2]
[313218771,1706967046626,-500.0,0.00023343,2]
[313218772,1706967046636,-784.58,0.00023343,2]
[313218773,1706967046645,-339.57076452,0.00023343,2]
[313218774,1706967046655,-564.24,0.00023343,2]
[313218775,1706967046664,-500.0,0.00023343,2]
[313218776,1706967046674,-500.0,0.00023343,2]
[313218777,1706967046685,-500.0,0.00023343,2]
[313218778,1706967046694,-500.0,0.00023343,2]
[313218779,1706967046703,-764.69,0.00023343,2]